[Event "*** Titled Tuesday Blitz"]
[Site "Chess.com"]
[Date "2020.05.05"]
[Round "1"]
[White "JonahWillow"]
[Black "AsaHoffmann"]
[Result "0-1"]
[WhiteElo "2691"]
[BlackElo "2382"]
[TimeControl "180+1"]
[EndTime "10:05:02 PDT"]
[Termination "AsaHoffmann won by checkmate"]

1. e4 {[%clk 0:03:00.9]} 1... d6 {[%clk 0:02:58.6]} 2. d4 {[%clk 0:03:00.1]}
2... c6 {[%clk 0:02:58]} 3. Nc3 {[%clk 0:03:00.5]} 3... a6 {[%clk 0:02:53.9]} 4.
f4 {[%clk 0:02:57.8]} 4... d5 {[%clk 0:02:52.7]} 5. e5 {[%clk 0:02:57.3]} 5...
h5 {[%clk 0:02:52]} 6. Nf3 {[%clk 0:02:57.3]} 6... Bg4 {[%clk 0:02:50.8]} 7. Be2
{[%clk 0:02:58]} 7... e6 {[%clk 0:02:50.5]} 8. O-O {[%clk 0:02:57]} 8... c5
{[%clk 0:02:50.2]} 9. Be3 {[%clk 0:02:51.5]} 9... Qc7 {[%clk 0:02:44.1]} 10. h3
{[%clk 0:02:48.3]} 10... Bxf3 {[%clk 0:02:43.3]} 11. Bxf3 {[%clk 0:02:49.2]}
11... g6 {[%clk 0:02:42.8]} 12. Ne2 {[%clk 0:02:47.1]} 12... cxd4 {[%clk
0:02:40.2]} 13. Nxd4 {[%clk 0:02:46.7]} 13... Nc6 {[%clk 0:02:39.9]} 14. c3
{[%clk 0:02:35.5]} 14... Nh6 {[%clk 0:02:39.2]} 15. Bf2 {[%clk 0:02:32]} 15...
Nf5 {[%clk 0:02:36]} 16. Nxf5 {[%clk 0:02:29.2]} 16... gxf5 {[%clk 0:02:34.8]}
17. Bxh5 {[%clk 0:02:29.9]} 17... O-O-O {[%clk 0:02:31.5]} 18. Bf3 {[%clk
0:02:25.1]} 18... Bh6 {[%clk 0:02:24.1]} 19. g3 {[%clk 0:02:19.7]} 19... Rdg8
{[%clk 0:02:22.2]} 20. Kh2 {[%clk 0:02:20]} 20... f6 {[%clk 0:02:19]} 21. Bd4
{[%clk 0:01:33.2]} 21... fxe5 {[%clk 0:02:01]} 22. fxe5 {[%clk 0:01:34.1]} 22...
Nxe5 {[%clk 0:01:56.6]} 23. Rg1 {[%clk 0:01:34.3]} 23... Bg7 {[%clk 0:01:47.3]}
24. Kg2 {[%clk 0:01:24]} 24... Nxf3 {[%clk 0:01:39.3]} 25. Qxf3 {[%clk
0:01:24.9]} 25... Bxd4 {[%clk 0:01:38.6]} 26. cxd4 {[%clk 0:01:25.8]} 26... Qc2+
{[%clk 0:01:37.7]} 27. Qf2 {[%clk 0:01:21.8]} 27... Rxg3+ {[%clk 0:01:22.8]} 28.
Kxg3 {[%clk 0:01:19.6]} 28... Rg8+ {[%clk 0:01:22.2]} 29. Kf3 {[%clk 0:00:49.5]}
29... Qe4# {[%clk 0:01:20.1]} 0-1

[Event "*** Titled Tuesday Blitz"]
[Site "Chess.com"]
[Date "2020.05.05"]
[Round "1"]
[White "pichonazo"]
[Black "IsaacWiebe"]
[Result "1-0"]
[WhiteElo "2513"]
[BlackElo "2134"]
[TimeControl "180+1"]
[EndTime "10:05:04 PDT"]
[Termination "pichonazo won by resignation"]

1. e4 {[%clk 0:03:00.9]} 1... e6 {[%clk 0:02:58.5]} 2. d4 {[%clk 0:03:00.3]}
2... d5 {[%clk 0:02:59]} 3. Nc3 {[%clk 0:02:59.6]} 3... Bb4 {[%clk 0:02:57]} 4.
Qd3 {[%clk 0:02:59.3]} 4... dxe4 {[%clk 0:02:56]} 5. Qxe4 {[%clk 0:03:00.2]}
5... Nf6 {[%clk 0:02:54.2]} 6. Qh4 {[%clk 0:02:59.6]} 6... b6 {[%clk 0:02:45]}
7. Bd3 {[%clk 0:02:54.7]} 7... Bb7 {[%clk 0:02:44.6]} 8. Nf3 {[%clk 0:02:54.6]}
8... Nbd7 {[%clk 0:02:44]} 9. Bg5 {[%clk 0:02:49.8]} 9... Be7 {[%clk 0:02:43.8]}
10. O-O-O {[%clk 0:02:48.6]} 10... h6 {[%clk 0:02:41.2]} 11. Ne5 {[%clk
0:02:44.1]} 11... O-O {[%clk 0:02:17.7]} 12. Bxh6 {[%clk 0:02:41.8]} 12... gxh6
{[%clk 0:02:15]} 13. Qxh6 {[%clk 0:02:42.7]} 13... Re8 {[%clk 0:02:08.2]} 14.
Qg5+ {[%clk 0:02:25.1]} 14... Kf8 {[%clk 0:02:03.6]} 15. Rhe1 {[%clk 0:02:13.2]}
15... Bb4 {[%clk 0:01:40.4]} 16. Re3 {[%clk 0:02:07.2]} 16... Bxc3 {[%clk
0:01:38.8]} 17. bxc3 {[%clk 0:02:06.3]} 17... Nxe5 {[%clk 0:01:32.5]} 18. dxe5
{[%clk 0:01:57.1]} 18... Nd5 {[%clk 0:01:32.5]} 19. Qh6+ {[%clk 0:01:53.3]}
19... Ke7 {[%clk 0:01:32.5]} 20. Rf3 {[%clk 0:01:49.9]} 20... Rg8 {[%clk
0:00:42.1]} 21. c4 {[%clk 0:01:39.6]} 21... Qf8 {[%clk 0:00:40.6]} 22. Qh4+
{[%clk 0:01:33.7]} 22... Ke8 {[%clk 0:00:40.6]} 23. cxd5 {[%clk 0:01:31.9]}
23... Bxd5 {[%clk 0:00:41.5]} 24. Bb5+ {[%clk 0:01:30.6]} 24... c6 {[%clk
0:00:39.5]} 25. Rxd5 {[%clk 0:01:29.7]} 25... Qa3+ {[%clk 0:00:38.2]} 26. Rxa3
{[%clk 0:01:28.2]} 1-0

[Event "*** Titled Tuesday Blitz"]
[Site "Chess.com"]
[Date "2020.05.05"]
[Round "1"]
[White "JessPinkman"]
[Black "mamonika"]
[Result "1-0"]
[WhiteElo "2479"]
[BlackElo "1967"]
[TimeControl "180+1"]
[EndTime "10:05:04 PDT"]
[Termination "JessPinkman won by resignation"]

1. e4 {[%clk 0:02:59.4]} 1... c5 {[%clk 0:02:46.2]} 2. Nf3 {[%clk 0:02:57.8]}
2... e6 {[%clk 0:02:45.7]} 3. d4 {[%clk 0:02:58.2]} 3... cxd4 {[%clk 0:02:46]}
4. Nxd4 {[%clk 0:02:59.1]} 4... Nc6 {[%clk 0:02:44.7]} 5. Qd3 {[%clk 0:02:55]}
5... Nf6 {[%clk 0:02:32.6]} 6. Nc3 {[%clk 0:02:51.6]} 6... a6 {[%clk 0:02:26.5]}
7. Nxc6 {[%clk 0:02:48.6]} 7... bxc6 {[%clk 0:02:13.4]} 8. Qg3 {[%clk 0:02:34]}
8... d5 {[%clk 0:02:10]} 9. Bd3 {[%clk 0:02:18.6]} 9... Bb4 {[%clk 0:01:33.5]}
10. e5 {[%clk 0:02:06]} 10... Nh5 {[%clk 0:01:08.8]} 11. Qg4 {[%clk 0:02:02.8]}
11... Bxc3+ {[%clk 0:00:44.6]} 12. bxc3 {[%clk 0:01:58.4]} 12... g6 {[%clk
0:00:44.3]} 13. O-O {[%clk 0:01:46.7]} 13... Ng7 {[%clk 0:00:43.1]} 14. Bg5
{[%clk 0:01:39.4]} 14... h5 {[%clk 0:00:38]} 15. Qf4 {[%clk 0:01:35.9]} 15...
Qc7 {[%clk 0:00:20.9]} 16. Bf6 {[%clk 0:01:35.4]} 16... O-O {[%clk 0:00:17.7]}
17. Qh6 {[%clk 0:01:33.1]} 1-0

[Event "*** Titled Tuesday Blitz"]
[Site "Chess.com"]
[Date "2020.05.05"]
[Round "1"]
[White "nubair1198"]
[Black "zmeeed67"]
[Result "1-0"]
[WhiteElo "2762"]
[BlackElo "2397"]
[TimeControl "180+1"]
[EndTime "10:05:05 PDT"]
[Termination "nubair1198 won by resignation"]

1. d4 {[%clk 0:03:00.9]} 1... d5 {[%clk 0:02:59.6]} 2. c4 {[%clk 0:03:01]} 2...
e6 {[%clk 0:02:59.4]} 3. Nc3 {[%clk 0:03:01.4]} 3... c6 {[%clk 0:02:59.8]} 4.
Nf3 {[%clk 0:03:01.1]} 4... Nf6 {[%clk 0:02:59.7]} 5. Bg5 {[%clk 0:03:01.3]}
5... dxc4 {[%clk 0:02:59.8]} 6. e4 {[%clk 0:03:01.2]} 6... b5 {[%clk 0:03:00.1]}
7. e5 {[%clk 0:03:01.3]} 7... h6 {[%clk 0:03:00.7]} 8. Bh4 {[%clk 0:03:01.6]}
8... g5 {[%clk 0:03:01.3]} 9. Nxg5 {[%clk 0:03:01.6]} 9... Nd5 {[%clk
0:03:01.9]} 10. Nxf7 {[%clk 0:02:51.6]} 10... Qxh4 {[%clk 0:03:01.7]} 11. Nxh8
{[%clk 0:02:51.7]} 11... Bb4 {[%clk 0:03:02.2]} 12. Qd2 {[%clk 0:02:45.7]} 12...
c5 {[%clk 0:02:53.6]} 13. dxc5 {[%clk 0:02:19.3]} 13... Nc6 {[%clk 0:02:53.5]}
14. O-O-O {[%clk 0:02:11.6]} 14... Nxe5 {[%clk 0:02:19.1]} 15. Qd4 {[%clk
0:01:35.4]} 15... Qxd4 {[%clk 0:02:07.2]} 16. Rxd4 {[%clk 0:01:36.3]} 16... Nxc3
{[%clk 0:02:07.9]} 17. bxc3 {[%clk 0:01:36.7]} 17... Bxc3 {[%clk 0:02:08.8]} 18.
Rh4 {[%clk 0:01:36]} 18... Bb7 {[%clk 0:01:35.9]} 19. Kc2 {[%clk 0:01:33.7]}
19... Be1 {[%clk 0:01:20.7]} 20. Be2 {[%clk 0:01:13.8]} 20... Bxf2 {[%clk
0:01:17.1]} 21. Rxh6 {[%clk 0:01:14.3]} 21... Bxg2 {[%clk 0:01:13.4]} 22. Rd1
{[%clk 0:01:08.4]} 22... Be4+ {[%clk 0:01:09.1]} 23. Kc3 {[%clk 0:01:07.6]}
23... Bxc5 {[%clk 0:01:01.7]} 24. Rxe6+ {[%clk 0:01:06.4]} 1-0

[Event "*** Titled Tuesday Blitz"]
[Site "Chess.com"]
[Date "2020.05.05"]
[Round "1"]
[White "joppie2"]
[Black "cholzan"]
[Result "0-1"]
[WhiteElo "2871"]
[BlackElo "2468"]
[TimeControl "180+1"]
[EndTime "10:05:06 PDT"]
[Termination "cholzan won by resignation"]

1. e4 {[%clk 0:03:00]} 1... e6 {[%clk 0:02:59.5]} 2. d4 {[%clk 0:02:58.6]} 2...
d5 {[%clk 0:03:00]} 3. Nc3 {[%clk 0:02:59.5]} 3... Bb4 {[%clk 0:02:59.8]} 4. e5
{[%clk 0:02:59.1]} 4... c5 {[%clk 0:03:00.2]} 5. a3 {[%clk 0:02:55]} 5... Bxc3+
{[%clk 0:03:00.4]} 6. bxc3 {[%clk 0:02:55.9]} 6... Ne7 {[%clk 0:03:00]} 7. Qg4
{[%clk 0:02:54.9]} 7... Qc7 {[%clk 0:03:00.7]} 8. Qxg7 {[%clk 0:02:54.8]} 8...
Rg8 {[%clk 0:03:01.3]} 9. Qxh7 {[%clk 0:02:55.5]} 9... cxd4 {[%clk 0:03:01.6]}
10. Qd3 {[%clk 0:02:56.4]} 10... dxc3 {[%clk 0:03:01.3]} 11. Ne2 {[%clk
0:02:56.4]} 11... Nbc6 {[%clk 0:02:59.8]} 12. Qxc3 {[%clk 0:02:56.9]} 12... Qxe5
{[%clk 0:02:59.3]} 13. Qxe5 {[%clk 0:02:57.2]} 13... Nxe5 {[%clk 0:02:59.6]} 14.
Ng3 {[%clk 0:02:57.2]} 14... Bd7 {[%clk 0:02:59.2]} 15. Nh5 {[%clk 0:02:52.7]}
15... O-O-O {[%clk 0:02:57.7]} 16. Nf6 {[%clk 0:02:51.3]} 16... Rg6 {[%clk
0:02:57.7]} 17. Nxd7 {[%clk 0:02:45.6]} 17... Rxd7 {[%clk 0:02:57.8]} 18. Bb2
{[%clk 0:02:46.2]} 18... Nc4 {[%clk 0:02:55.7]} 19. Bxc4 {[%clk 0:02:44]} 19...
dxc4 {[%clk 0:02:53.7]} 20. g3 {[%clk 0:02:44.9]} 20... Nd5 {[%clk 0:02:41.7]}
21. O-O-O {[%clk 0:02:43]} 21... c3 {[%clk 0:02:39.9]} 22. Ba1 {[%clk
0:02:43.6]} 22... Rg4 {[%clk 0:02:39.3]} 23. Rd3 {[%clk 0:02:41.5]} 23... Ra4
{[%clk 0:02:36.9]} 24. Bxc3 {[%clk 0:02:40]} 24... Rxa3 {[%clk 0:02:37.4]} 25.
Bb2 {[%clk 0:02:39.9]} 25... Rxd3 {[%clk 0:02:36.4]} 26. cxd3 {[%clk 0:02:40.8]}
26... Nb4 {[%clk 0:02:36.6]} 27. h4 {[%clk 0:01:52]} 27... Nxd3+ {[%clk
0:02:33.2]} 28. Kc2 {[%clk 0:01:52.9]} 28... Nxf2 {[%clk 0:02:24.9]} 29. Rf1
{[%clk 0:01:38.1]} 29... Ne4 {[%clk 0:02:14.7]} 30. Be5 {[%clk 0:01:19]} 30...
f5 {[%clk 0:02:06.2]} 31. Rh1 {[%clk 0:01:06.5]} 31... Rd2+ {[%clk 0:02:03]} 32.
Kb3 {[%clk 0:01:05.5]} 32... Rd5 {[%clk 0:02:01.6]} 33. Bb2 {[%clk 0:00:53.7]}
33... Nxg3 {[%clk 0:01:54.3]} 34. Rg1 {[%clk 0:00:54]} 34... f4 {[%clk
0:01:54.4]} 35. Bc1 {[%clk 0:00:48.5]} 35... e5 {[%clk 0:01:53.9]} 0-1

[Event "*** Titled Tuesday Blitz"]
[Site "Chess.com"]
[Date "2020.05.05"]
[Round "1"]
[White "evgenyermolaev"]
[Black "Dr_Thomas_Quilter"]
[Result "1-0"]
[WhiteElo "2565"]
[BlackElo "2210"]
[TimeControl "180+1"]
[EndTime "10:05:09 PDT"]
[Termination "evgenyermolaev won on time"]

1. e4 {[%clk 0:03:00.8]} 1... e5 {[%clk 0:02:58.4]} 2. Nf3 {[%clk 0:02:59.5]}
2... Qe7 {[%clk 0:02:57.4]} 3. Nc3 {[%clk 0:02:58.5]} 3... c6 {[%clk 0:02:57.4]}
4. d4 {[%clk 0:02:58.1]} 4... d6 {[%clk 0:02:56.7]} 5. Bc4 {[%clk 0:02:57.6]}
5... Nf6 {[%clk 0:02:55.8]} 6. O-O {[%clk 0:02:57.1]} 6... h6 {[%clk 0:02:54.5]}
7. a4 {[%clk 0:02:55.6]} 7... Nbd7 {[%clk 0:02:54.6]} 8. a5 {[%clk 0:02:55.9]}
8... g5 {[%clk 0:02:52.1]} 9. b3 {[%clk 0:02:53.9]} 9... Bg7 {[%clk 0:02:45.3]}
10. Ba3 {[%clk 0:02:51.7]} 10... exd4 {[%clk 0:02:26.2]} 11. e5 {[%clk
0:02:39.1]} 11... Nxe5 {[%clk 0:02:13.1]} 12. Nxe5 {[%clk 0:02:38.8]} 12... O-O
{[%clk 0:01:26.2]} 13. Ng6 {[%clk 0:02:36.2]} 13... Qd8 {[%clk 0:00:55.8]} 14.
Nxf8 {[%clk 0:02:35.4]} 14... dxc3 {[%clk 0:00:52.3]} 15. Ng6 {[%clk 0:02:35.5]}
15... d5 {[%clk 0:00:50.9]} 16. Ne7+ {[%clk 0:02:35.7]} 16... Kh8 {[%clk
0:00:45]} 17. Nxc8 {[%clk 0:02:35.9]} 17... Rxc8 {[%clk 0:00:27.4]} 18. Bd3
{[%clk 0:02:35.7]} 18... d4 {[%clk 0:00:17.2]} 19. Qf3 {[%clk 0:02:34.8]} 19...
c5 {[%clk 0:00:13.6]} 20. Qf5 {[%clk 0:02:33.9]} 20... Rc6 {[%clk 0:00:09.8]}
21. Bxc5 {[%clk 0:02:30]} 21... Qd5 {[%clk 0:00:02.6]} 22. Bxa7 {[%clk
0:02:20.1]} 22... Qxf5 {[%clk 0:00:01.6]} 23. Bxf5 {[%clk 0:02:21]} 23... Nd5
{[%clk 0:00:01.9]} 24. Be4 {[%clk 0:02:19.7]} 24... Rd6 {[%clk 0:00:02.3]} 25.
Bc5 {[%clk 0:02:18.7]} 25... Rd8 {[%clk 0:00:02.1]} 26. Bxd5 {[%clk 0:02:18.1]}
26... Rxd5 {[%clk 0:00:01.8]} 27. b4 {[%clk 0:02:19]} 27... f5 {[%clk
0:00:01.4]} 28. a6 {[%clk 0:02:17.3]} 28... bxa6 {[%clk 0:00:01.1]} 29. Rxa6
{[%clk 0:02:18.2]} 29... f4 {[%clk 0:00:01.6]} 30. Rd6 {[%clk 0:02:18.2]} 1-0

[Event "*** Titled Tuesday Blitz"]
[Site "Chess.com"]
[Date "2020.05.05"]
[Round "1"]
[White "jfriedel"]
[Black "ZarinaShafigullina"]
[Result "1-0"]
[WhiteElo "2566"]
[BlackElo "2233"]
[TimeControl "180+1"]
[EndTime "10:05:17 PDT"]
[Termination "jfriedel won by resignation"]

1. d4 {[%clk 0:03:00.1]} 1... Nf6 {[%clk 0:02:59.5]} 2. c4 {[%clk 0:02:59.6]}
2... e6 {[%clk 0:02:59.7]} 3. Nc3 {[%clk 0:02:58.6]} 3... Bb4 {[%clk 0:02:59.4]}
4. Nf3 {[%clk 0:02:59.1]} 4... O-O {[%clk 0:02:58.6]} 5. Bg5 {[%clk 0:02:56.3]}
5... d5 {[%clk 0:02:58.4]} 6. cxd5 {[%clk 0:02:49.7]} 6... exd5 {[%clk
0:02:57.9]} 7. e3 {[%clk 0:02:49.6]} 7... c6 {[%clk 0:02:57.6]} 8. Bd3 {[%clk
0:02:47.3]} 8... h6 {[%clk 0:02:57.3]} 9. Bh4 {[%clk 0:02:44]} 9... Re8 {[%clk
0:02:56.6]} 10. O-O {[%clk 0:02:43]} 10... Bg4 {[%clk 0:02:55.9]} 11. Qb3 {[%clk
0:02:25.9]} 11... Qe7 {[%clk 0:02:41.9]} 12. Ne5 {[%clk 0:02:21.1]} 12... Bc8
{[%clk 0:02:35.4]} 13. Rad1 {[%clk 0:01:37.7]} 13... Bd6 {[%clk 0:02:34.8]} 14.
f4 {[%clk 0:01:35.6]} 14... Nbd7 {[%clk 0:02:33.9]} 15. e4 {[%clk 0:01:34.3]}
15... dxe4 {[%clk 0:02:26.9]} 16. Nxe4 {[%clk 0:01:34.8]} 16... Bc7 {[%clk
0:02:26.7]} 17. Bc4 {[%clk 0:01:28]} 17... Rf8 {[%clk 0:02:23.6]} 18. Nxf6+
{[%clk 0:01:25.1]} 18... Nxf6 {[%clk 0:02:16.1]} 19. Ng6 {[%clk 0:01:25.1]}
19... Qe4 {[%clk 0:01:53.1]} 20. Nxf8 {[%clk 0:01:21.7]} 20... Bg4 {[%clk
0:01:50.6]} 21. Bxf6 {[%clk 0:01:08.2]} 21... Bxd1 {[%clk 0:01:42.5]} 22. Qxd1
{[%clk 0:00:56.5]} 22... gxf6 {[%clk 0:01:27.8]} 23. Nd7 {[%clk 0:00:52.6]}
23... Qf5 {[%clk 0:01:27.4]} 24. Qg4+ {[%clk 0:00:51.3]} 24... Qxg4 {[%clk
0:01:22.3]} 25. Nxf6+ {[%clk 0:00:51.5]} 25... Kg7 {[%clk 0:01:22.7]} 26. Nxg4
{[%clk 0:00:52.4]} 26... Bb6 {[%clk 0:01:22.8]} 27. Rd1 {[%clk 0:00:50.3]} 27...
Rd8 {[%clk 0:01:23.1]} 28. Kf1 {[%clk 0:00:50.5]} 28... Bxd4 {[%clk 0:01:22.3]}
29. Ne5 {[%clk 0:00:49.4]} 29... b5 {[%clk 0:01:17.5]} 30. Nxc6 {[%clk
0:00:46.5]} 1-0

[Event "*** Titled Tuesday Blitz"]
[Site "Chess.com"]
[Date "2020.05.05"]
[Round "1"]
[White "Harut-1998"]
[Black "ahappypawn"]
[Result "1-0"]
[WhiteElo "2718"]
[BlackElo "2374"]
[TimeControl "180+1"]
[EndTime "10:05:18 PDT"]
[Termination "Harut-1998 won by resignation"]

1. d4 {[%clk 0:02:59.6]} 1... d5 {[%clk 0:02:59.7]} 2. Bf4 {[%clk 0:02:58.5]}
2... Nf6 {[%clk 0:02:59]} 3. e3 {[%clk 0:02:58.2]} 3... e6 {[%clk 0:02:59.6]} 4.
Nf3 {[%clk 0:02:57.1]} 4... Bd6 {[%clk 0:02:58.2]} 5. Bg3 {[%clk 0:02:56.4]}
5... c5 {[%clk 0:02:57.9]} 6. c3 {[%clk 0:02:54.8]} 6... Qc7 {[%clk 0:02:49.9]}
7. Nbd2 {[%clk 0:02:53.3]} 7... Nbd7 {[%clk 0:02:39.8]} 8. Be2 {[%clk
0:02:46.6]} 8... b6 {[%clk 0:02:31.1]} 9. O-O {[%clk 0:02:45.5]} 9... O-O {[%clk
0:02:30.3]} 10. a3 {[%clk 0:02:42.5]} 10... e5 {[%clk 0:02:09.3]} 11. dxe5
{[%clk 0:02:37.9]} 11... Nxe5 {[%clk 0:02:10.2]} 12. Nxe5 {[%clk 0:02:38.4]}
12... Bxe5 {[%clk 0:02:09.9]} 13. Bxe5 {[%clk 0:02:39.3]} 13... Qxe5 {[%clk
0:02:09.8]} 14. Nf3 {[%clk 0:02:33.4]} 14... Qc7 {[%clk 0:01:53.4]} 15. Qa4
{[%clk 0:02:32.1]} 15... Bb7 {[%clk 0:01:47.7]} 16. Qh4 {[%clk 0:02:28.1]} 16...
Rfe8 {[%clk 0:01:44.3]} 17. Rfe1 {[%clk 0:02:25.6]} 17... Re4 {[%clk 0:01:04.9]}
18. Qg3 {[%clk 0:02:22.6]} 18... Qe7 {[%clk 0:00:52.1]} 19. Bd3 {[%clk
0:02:15.3]} 19... Rg4 {[%clk 0:00:48.7]} 20. Qe5 {[%clk 0:02:15.3]} 20... Qd7
{[%clk 0:00:27.4]} 21. Bf5 {[%clk 0:02:12.4]} 21... Qd8 {[%clk 0:00:20.8]} 22.
Bxg4 {[%clk 0:02:09.7]} 22... Nxg4 {[%clk 0:00:21.7]} 23. Qf4 {[%clk 0:02:10.3]}
23... Nf6 {[%clk 0:00:21.7]} 24. Rad1 {[%clk 0:02:06.2]} 24... Qe7 {[%clk
0:00:21.3]} 25. Qe5 {[%clk 0:02:05.2]} 25... Qd7 {[%clk 0:00:20.5]} 26. c4
{[%clk 0:02:01]} 26... Re8 {[%clk 0:00:20.6]} 27. Qf4 {[%clk 0:01:59.4]} 27...
Re4 {[%clk 0:00:18.3]} 28. Qb8+ {[%clk 0:01:55.5]} 28... Re8 {[%clk 0:00:18.1]}
29. Qxa7 {[%clk 0:01:54.2]} 29... d4 {[%clk 0:00:12.8]} 30. exd4 {[%clk
0:01:45.6]} 1-0

[Event "*** Titled Tuesday Blitz"]
[Site "Chess.com"]
[Date "2020.05.05"]
[Round "1"]
[White "MiroVlasenko"]
[Black "chiwii"]
[Result "1-0"]
[WhiteElo "2585"]
[BlackElo "2253"]
[TimeControl "180+1"]
[EndTime "10:05:18 PDT"]
[Termination "MiroVlasenko won by resignation"]

1. e4 {[%clk 0:03:00.9]} 1... c5 {[%clk 0:02:56.7]} 2. Nc3 {[%clk 0:03:00.9]}
2... e6 {[%clk 0:02:52.1]} 3. f4 {[%clk 0:03:01]} 3... Nc6 {[%clk 0:02:51.2]} 4.
Nf3 {[%clk 0:03:01.4]} 4... d6 {[%clk 0:02:48.8]} 5. Bb5 {[%clk 0:02:57.5]} 5...
g6 {[%clk 0:02:47.4]} 6. O-O {[%clk 0:02:56.9]} 6... Bg7 {[%clk 0:02:46.9]} 7.
d3 {[%clk 0:02:57.3]} 7... Ne7 {[%clk 0:02:46.6]} 8. Qe1 {[%clk 0:02:56.3]} 8...
O-O {[%clk 0:02:46.8]} 9. a4 {[%clk 0:02:48.4]} 9... a6 {[%clk 0:02:42.6]} 10.
Bxc6 {[%clk 0:02:47.6]} 10... Nxc6 {[%clk 0:02:41.9]} 11. Be3 {[%clk 0:02:43.5]}
11... Nd4 {[%clk 0:02:30.4]} 12. Qf2 {[%clk 0:02:43.3]} 12... Nxf3+ {[%clk
0:02:22.9]} 13. Qxf3 {[%clk 0:02:43.2]} 13... Rb8 {[%clk 0:02:18]} 14. Rae1
{[%clk 0:02:36.6]} 14... b5 {[%clk 0:02:17.4]} 15. axb5 {[%clk 0:02:36.9]} 15...
axb5 {[%clk 0:02:17.4]} 16. Nd1 {[%clk 0:02:37.4]} 16... b4 {[%clk 0:02:13.9]}
17. b3 {[%clk 0:02:35.3]} 17... Ra8 {[%clk 0:02:11]} 18. Nf2 {[%clk 0:02:34]}
18... Ra2 {[%clk 0:02:09.4]} 19. Re2 {[%clk 0:02:33.3]} 19... Qa5 {[%clk
0:02:07.5]} 20. h4 {[%clk 0:02:29.7]} 20... Bb7 {[%clk 0:01:44.7]} 21. h5 {[%clk
0:02:24.9]} 21... d5 {[%clk 0:01:40.9]} 22. hxg6 {[%clk 0:02:22.4]} 22... hxg6
{[%clk 0:01:39]} 23. Nh3 {[%clk 0:02:16.7]} 23... Ra8 {[%clk 0:01:37.3]} 24. Ng5
{[%clk 0:02:15.3]} 24... dxe4 {[%clk 0:01:35.1]} 25. dxe4 {[%clk 0:02:06.1]}
25... Ba6 {[%clk 0:01:35.2]} 26. f5 {[%clk 0:02:06]} 26... Bxe2 {[%clk
0:01:34.9]} 27. Qxe2 {[%clk 0:02:06.2]} 27... exf5 {[%clk 0:01:30.2]} 28. Qc4
{[%clk 0:02:02.1]} 28... Qc7 {[%clk 0:01:13.3]} 29. exf5 {[%clk 0:01:57.5]}
29... Ra1 {[%clk 0:01:05.4]} 30. fxg6 {[%clk 0:01:53.6]} 30... Rxf1+ {[%clk
0:01:05.2]} 31. Kxf1 {[%clk 0:01:53.7]} 31... Ra1+ {[%clk 0:01:04.1]} 32. Ke2
{[%clk 0:01:49.3]} 32... Ra5 {[%clk 0:00:29.4]} 33. gxf7+ {[%clk 0:01:46.4]}
33... Kf8 {[%clk 0:00:26.2]} 34. Ne6+ {[%clk 0:01:45.2]} 1-0

[Event "*** Titled Tuesday Blitz"]
[Site "Chess.com"]
[Date "2020.05.05"]
[Round "1"]
[White "svilson23"]
[Black "KoustavChatterjee1"]
[Result "0-1"]
[WhiteElo "2238"]
[BlackElo "2569"]
[TimeControl "180+1"]
[EndTime "10:05:22 PDT"]
[Termination "KoustavChatterjee1 won by resignation"]

1. d4 {[%clk 0:02:58.8]} 1... Nf6 {[%clk 0:02:59.3]} 2. Bg5 {[%clk 0:02:57.3]}
2... d5 {[%clk 0:02:58.3]} 3. Bxf6 {[%clk 0:02:55.6]} 3... gxf6 {[%clk
0:02:59.2]} 4. c4 {[%clk 0:02:20.2]} 4... dxc4 {[%clk 0:02:57.2]} 5. e3 {[%clk
0:02:16.3]} 5... c5 {[%clk 0:02:55.3]} 6. Bxc4 {[%clk 0:02:16.2]} 6... cxd4
{[%clk 0:02:55.4]} 7. Nc3 {[%clk 0:02:00.1]} 7... Bg7 {[%clk 0:02:51.2]} 8. Nge2
{[%clk 0:01:59.2]} 8... Nc6 {[%clk 0:02:47.4]} 9. exd4 {[%clk 0:01:54.3]} 9...
O-O {[%clk 0:02:47.1]} 10. O-O {[%clk 0:01:50.7]} 10... f5 {[%clk 0:02:46.6]}
11. d5 {[%clk 0:01:45.3]} 11... Ne5 {[%clk 0:02:46.1]} 12. Bb3 {[%clk
0:01:45.8]} 12... Qd6 {[%clk 0:02:44.3]} 13. h3 {[%clk 0:01:39]} 13... Bd7
{[%clk 0:02:42.7]} 14. Ba4 {[%clk 0:01:33.8]} 14... Bxa4 {[%clk 0:02:35.6]} 15.
Qxa4 {[%clk 0:01:28.1]} 15... a6 {[%clk 0:02:35.5]} 16. Rad1 {[%clk 0:01:11.9]}
16... b5 {[%clk 0:02:32]} 17. Qb3 {[%clk 0:00:50.7]} 17... Nc4 {[%clk
0:02:27.1]} 18. Nd4 {[%clk 0:00:47.7]} 18... Qf4 {[%clk 0:02:20.1]} 19. Nce2
{[%clk 0:00:33.4]} 19... Qg5 {[%clk 0:02:16.2]} 20. Qd3 {[%clk 0:00:31.6]} 20...
Ne5 {[%clk 0:02:14.1]} 21. Qd2 {[%clk 0:00:22.5]} 21... Qf6 {[%clk 0:02:06.8]}
22. a4 {[%clk 0:00:19.3]} 22... Nc4 {[%clk 0:02:05.1]} 23. Qb4 {[%clk
0:00:18.1]} 23... Nd6 {[%clk 0:02:02.8]} 24. axb5 {[%clk 0:00:17.5]} 24... axb5
{[%clk 0:02:03.7]} 25. Nc3 {[%clk 0:00:16.3]} 25... Rfc8 {[%clk 0:02:01.9]} 26.
Ncxb5 {[%clk 0:00:15.8]} 26... Rab8 {[%clk 0:02:01.8]} 27. Qa4 {[%clk
0:00:13.4]} 27... Rc4 {[%clk 0:02:00.3]} 28. Qa6 {[%clk 0:00:03.8]} 28... Nxb5
{[%clk 0:01:58.5]} 29. Nxb5 {[%clk 0:00:03.6]} 29... Qxa6 {[%clk 0:01:57.5]} 0-1